bitfinex/quotes_BTCUSD_20240827
["timestamp","ask_amount","ask_price","bid_price","bid_amount"]
[1724788805346,0.02600002,62259.0,62247.0,0.321298]
[1724788805824,0.02600002,62259.0,62249.0,0.160644]
[1724788806047,0.02900002,62259.0,62250.0,0.160642]
[1724788806528,0.02900002,62259.0,62248.0,0.321294]
[1724788806746,0.03300002,62259.0,62249.0,0.160644]
[1724788807007,0.02900002,62259.0,62249.0,0.160644]
[1724788807224,0.18961902,62259.0,62248.0,0.160645]
[1724788807441,0.02900002,62259.0,62249.0,0.160644]
[1724788807695,0.02900002,62259.0,62244.0,0.321311]
[1724788807696,0.19362002,62259.0,62245.0,0.321309]
[1724788807913,0.19362002,62259.0,62245.0,0.160654]
[1724788807914,0.510627,62256.0,62245.0,0.160654]
[1724788808153,0.510627,62256.0,62246.0,0.160652]
[1724788808154,0.02600002,62255.0,62246.0,0.160652]
[1724788808368,0.02600002,62255.0,62246.0,0.160651]
[1724788808602,0.02600002,62255.0,62247.0,0.160649]
[1724788808815,0.02600002,62255.0,62245.0,0.160655]
[1724788809041,0.18663002,62255.0,62239.0,0.00838009]
[1724788809271,0.243238,62252.0,62235.0,0.1]
[1724788809540,0.02600002,62251.0,62240.0,0.321335]
[1724788809763,0.02600002,62251.0,62242.0,0.321323]
[1724788810009,0.02600002,62251.0,62234.0,0.321364]
[1724788810010,0.02519582,62249.0,62237.0,0.321349]
[1724788810227,0.02519582,62249.0,62238.0,0.03312739]
[1724788810457,0.02519582,62249.0,62243.0,0.16066]
[1724788810707,0.02519582,62249.0,62240.0,0.006]
[1724788810921,0.02519582,62249.0,62242.0,0.160661]
[1724788811433,0.02819584,62249.0,62240.0,0.160667]
[1724788811699,0.05,62246.0,62238.0,0.0029009]
[1724788811925,0.160664,62242.0,62238.0,0.0029009]
[1724788812158,0.40241202,62245.0,62238.0,0.0029009]
[1724788812159,0.0781,62241.0,62238.0,0.0009009]
[1724788812395,0.4105,62248.0,62246.0,0.160652]
[1724788812628,0.4105,62248.0,62240.0,0.321336]
[1724788812629,0.0251983,62241.0,62240.0,0.482004]
[1724788813087,0.0781,62247.0,62241.0,0.160664]
[1724788813593,0.0781,62247.0,62240.0,0.321336]
[1724788813594,0.0781,62247.0,62246.0,0.001]
[1724788813807,0.0781,62247.0,62240.0,0.160666]
[1724788813808,0.1011,62247.0,62240.0,0.160666]
[1724788814053,0.1032986,62247.0,62241.0,0.160665]
[1724788814286,0.001,62242.0,62241.0,0.24009159]
[1724788814523,0.1032986,62247.0,62243.0,0.160659]
[1724788814736,0.1032986,62247.0,62243.0,0.08846575]
[1724788814961,0.1032986,62247.0,62246.0,0.003]
[1724788815198,0.1262986,62247.0,62246.0,0.006]
[1724788815421,0.1262986,62247.0,62246.0,0.003]
[1724788816064,0.12929862,62247.0,62246.0,0.003]
[1724788816288,0.28994862,62247.0,62246.0,0.003]
[1724788816545,0.28994862,62247.0,62243.0,0.003]
[1724788816546,0.160658,62244.0,62243.0,0.003]
[1724788816753,0.63937402,62244.0,62243.0,0.006]
[1724788816966,0.63937402,62244.0,62238.0,0.0009009]
[1724788816967,0.15740002,62244.0,62238.0,0.0009009]
[1724788817222,0.023,62243.0,62238.0,0.0009009]
[1724788817440,0.00300002,62242.0,62238.0,0.0009009]
[1724788817867,0.373,62241.0,62238.0,0.0009009]
[1724788818097,0.00300002,62240.0,62238.0,0.0009009]
[1724788818308,0.35,62241.0,62238.0,0.0009009]
[1724788818824,0.35,62241.0,62238.0,0.0059009]
[1724788819051,0.37520065,62241.0,62238.0,0.0059009]
[1724788819992,0.37520065,62241.0,62238.0,0.0009009]
[1724788820228,0.37520065,62241.0,62238.0,0.0139009]
[1724788820457,0.37620065,62241.0,62238.0,0.0089009]
[1724788820678,0.37720065,62241.0,62238.0,0.0129009]
[1724788821851,0.37720065,62241.0,62239.0,0.16067]
[1724788822320,0.37720065,62241.0,62238.0,0.0129009]
[1724788822542,0.37720065,62241.0,62239.0,0.16067]
[1724788822757,0.02720065,62241.0,62240.0,0.80334]
[1724788823007,0.02620065,62241.0,62240.0,0.80334]
[1724788824124,0.02720065,62241.0,62240.0,0.81234]
[1724788824349,0.02820065,62241.0,62240.0,0.81634]
[1724788824566,0.02620065,62241.0,62240.0,0.80734]
[1724788824799,0.02620065,62241.0,62240.0,0.80334]
[1724788825050,0.02820065,62241.0,62240.0,0.82034]
[1724788825764,0.02820065,62241.0,62240.0,1.141676]
[1724788825989,0.02820065,62241.0,62240.0,0.82034]
[1724788826231,0.02840065,62241.0,62240.0,0.82034]
[1724788827162,0.02840065,62241.0,62240.0,1.24785956]
[1724788827861,0.02840065,62241.0,62240.0,1.32655956]
[1724788828075,0.02840065,62241.0,62240.0,1.64789556]
[1724788828309,0.02970065,62241.0,62240.0,1.70909556]
[1724788828548,0.02970065,62241.0,62240.0,1.38775956]
[1724788828789,0.02970065,62241.0,62240.0,1.281576]
[1724788829239,0.02970065,62241.0,62240.0,1.268576]
[1724788829240,0.02870065,62241.0,62240.0,1.268576]
[1724788829464,0.02870065,62241.0,62240.0,1.139676]
[1724788829707,0.11030065,62241.0,62240.0,0.015]
[1724788829958,0.11030065,62241.0,62240.0,0.004]
[1724788830191,0.11030065,62241.0,62240.0,0.164668]
[1724788830431,0.11030065,62241.0,62240.0,0.178668]
[1724788830666,0.11030065,62241.0,62240.0,0.174668]
[1724788830667,0.10830065,62241.0,62240.0,0.174668]
[1724788830910,0.10830065,62241.0,62240.0,0.1755689]
[1724788831157,0.10830065,62241.0,62240.0,0.4939049]
[1724788831379,0.02670065,62241.0,62240.0,0.86502208]
[1724788831590,0.02670065,62241.0,62240.0,0.87102208]
[1724788832243,0.02670065,62241.0,62240.0,0.85402208]
[1724788832738,0.02670065,62241.0,62240.0,0.86402208]
[1724788832931,0.02670065,62241.0,62240.0,0.87102208]
[1724788833596,0.02670065,62241.0,62240.0,0.86402208]
[1724788834087,0.02670065,62241.0,62240.0,0.86202208]
[1724788834506,0.02670065,62241.0,62240.0,0.87002208]
[1724788834709,0.02670065,62241.0,62240.0,0.86202208]
[1724788834952,0.02670065,62241.0,62240.0,0.87002208]
[1724788840240,0.02670065,62241.0,62240.0,0.4989049]
[1724788841353,0.02670065,62241.0,62240.0,0.8202409]
[1724788842005,0.02670065,62241.0,62240.0,0.4989049]
[1724788842208,0.16920065,62241.0,62240.0,0.4989049]
[1724788842857,0.16920065,62241.0,62240.0,0.8202409]
[1724788843284,0.10910065,62241.0,62240.0,0.8202409]
[1724788843528,0.02670065,62241.0,62240.0,0.93449128]
[1724788843735,0.02751965,62241.0,62240.0,0.93449128]
[1724788844625,0.02751965,62241.0,62240.0,0.8202409]
[1724788845044,0.02751965,62241.0,62240.0,0.4989049]
[1724788845768,0.09939886,62241.0,62240.0,0.4989049]
[1724788845971,0.09985962,62241.0,62240.0,0.4989049]
[1724788846644,0.09985962,62241.0,62240.0,0.8202409]
[1724788846848,0.09985962,62241.0,62240.0,0.4989049]
[1724788847733,0.12401053,62241.0,62240.0,0.4989049]
[1724788848374,0.14801806,62241.0,62240.0,0.4989049]
[1724788849037,0.14801806,62241.0,62240.0,0.1775689]
[1724788849280,0.02798041,62241.0,62240.0,0.4989049]
[1724788850243,0.02798041,62241.0,62240.0,0.61315538]
[1724788852262,0.02798041,62241.0,62240.0,0.93449138]
[1724788853170,0.02798041,62241.0,62240.0,0.61315538]
[1724788853848,0.02798041,62241.0,62240.0,0.4989049]
[1724788854503,0.02798041,62241.0,62240.0,0.0169009]
[1724788854504,1.1164526,62241.0,62240.0,0.0169009]
[1724788854764,1.31920405,62241.0,62240.0,0.0169009]
[1724788855440,1.31920405,62241.0,62240.0,0.0009009]
[1724788855708,1.31920405,62241.0,62240.0,0.0029009]
[1724788855709,1.8285005,62241.0,62240.0,0.0029009]
[1724788855923,2.13748468,62241.0,62240.0,0.0019009]
[1724788856141,1.79568804,62241.0,62240.0,0.0019009]
[1724788856371,2.14748468,62241.0,62240.0,0.0019009]
[1724788856589,2.14248468,62241.0,62240.0,0.0009009]
[1724788857010,1.451034,62239.0,62238.0,0.0009009]
[1724788857262,1.389293,62239.0,62238.0,0.0009009]
[1724788857485,1.710634,62239.0,62238.0,0.0009009]
[1724788858577,1.710634,62239.0,62238.0,0.0019009]
[1724788858722,1.721634,62239.0,62238.0,0.0019009]
[1724788859369,1.95778002,62239.0,62238.0,0.0019009]
[1724788859779,1.732634,62239.0,62238.0,0.0029009]
[1724788860432,1.96876998,62239.0,62238.0,0.0029009]
[1724788860861,1.89259945,62239.0,62238.0,0.0029009]
[1724788861312,1.411293,62239.0,62238.0,0.0029009]
[1724788861596,0.2586,62239.0,62238.0,0.0029009]
[1724788861805,0.32050859,62239.0,62238.0,0.0029009]
[1724788862013,0.0976,62239.0,62238.0,0.0029009]
[1724788862225,0.022,62239.0,62238.0,0.1635739]
[1724788862415,0.022,62239.0,62238.0,0.4849209]
[1724788862688,0.022,62239.0,62238.0,0.85376169]
[1724788862689,0.011,62239.0,62238.0,0.85376169]
[1724788862902,0.08297369,62239.0,62238.0,0.85376169]
[1724788863082,0.014,62239.0,62238.0,0.85376169]
[1724788863334,0.014,62239.0,62238.0,0.8052679]
[1724788863556,0.014,62239.0,62238.0,1.1266149]
[1724788863782,0.08597576,62239.0,62238.0,1.1266149]
[1724788864631,0.07197576,62239.0,62238.0,1.1256149]
[1724788864917,0.07197576,62239.0,62238.0,1.1266149]
[1724788865151,0.07697576,62239.0,62238.0,0.8052679]
[1724788865427,0.09596496,62240.0,62239.0,0.482011]
[1724788865660,0.02648041,62241.0,62240.0,0.482004]
[1724788865870,0.09845989,62241.0,62240.0,0.80334]
[1724788866076,0.09845989,62241.0,62240.0,0.80234]
[1724788866489,0.12245533,62241.0,62240.0,0.80234]
[1724788866698,0.09846215,62241.0,62240.0,0.91499879]
[1724788866901,0.09846108,62241.0,62240.0,0.91499879]
[1724788867336,0.09976108,62241.0,62240.0,0.91499879]
[1724788867545,0.02778041,62241.0,62240.0,0.59366279]
[1724788867722,0.02778041,62241.0,62240.0,0.480004]
[1724788867959,0.12475533,62241.0,62240.0,0.486004]
[1724788868185,0.10076356,62241.0,62240.0,0.486004]
[1724788868378,0.10096356,62241.0,62240.0,0.487004]
[1724788868610,0.10096356,62241.0,62240.0,0.59996519]
[1724788869043,0.10196356,62241.0,62240.0,0.60596519]
[1724788869290,0.10496358,62241.0,62240.0,0.013]
[1724788869505,0.10196333,62241.0,62240.0,0.495004]
[1724788869727,0.07797138,62241.0,62240.0,1.220876]
[1724788869987,0.02998041,62241.0,62240.0,1.40945369]
[1724788870216,0.02998041,62241.0,62240.0,1.73078969]
[1724788870880,0.02898041,62241.0,62240.0,1.71778969]
[1724788871094,0.02798041,62241.0,62240.0,1.71778969]
[1724788871282,0.02998041,62241.0,62240.0,1.73278969]
[1724788871581,0.02898041,62241.0,62240.0,1.72478969]
[1724788871805,0.02798041,62241.0,62240.0,1.71778969]
[1724788872038,0.02898041,62241.0,62240.0,1.73178969]
[1724788872291,0.02798041,62241.0,62240.0,1.71778969]
[1724788872515,0.02898041,62241.0,62240.0,1.73178969]
[1724788872727,0.02998041,62241.0,62240.0,1.302276]
[1724788874071,0.02998041,62241.0,62240.0,1.274276]
[1724788874072,0.02798041,62241.0,62240.0,1.274276]
[1724788874286,0.02798041,62241.0,62240.0,1.288276]
[1724788874506,0.02898041,62241.0,62240.0,1.43119369]
[1724788874718,0.02898041,62241.0,62240.0,1.41719369]
[1724788875211,0.02898041,62241.0,62240.0,1.43119369]
[1724788875431,0.02898041,62241.0,62240.0,0.83134]
[1724788875878,0.07697867,62241.0,62240.0,0.028]
[1724788876086,0.10097781,62241.0,62240.0,0.028]
[1724788876322,0.02898041,62241.0,62240.0,0.028]
[1724788876616,0.10468041,62241.0,62240.0,0.028]
[1724788877105,0.20067694,62241.0,62240.0,0.014]
[1724788877340,0.10668043,62241.0,62240.0,0.002]
[1724788877553,0.22667609,62241.0,62240.0,0.002]
[1724788877980,0.22667609,62241.0,62239.0,0.16067]
[1724788878207,0.22667609,62241.0,62240.0,0.002]
[1724788878419,0.22667609,62241.0,62240.0,0.0029042]
[1724788878634,0.22667609,62241.0,62240.0,0.0019042]
[1724788880180,0.22667609,62241.0,62240.0,0.0009042]
[1724788880666,0.22667609,62241.0,62240.0,0.0019042]
[1724788881756,0.22667609,62241.0,62240.0,0.0029042]
[1724788882191,0.22670556,62241.0,62240.0,0.0029042]
[1724788883120,0.26734543,62241.0,62240.0,0.0029042]
[1724788883347,0.32944543,62241.0,62240.0,0.0029042]
[1724788883575,0.16878043,62241.0,62240.0,0.0029042]
[1724788883789,1.14671789,62241.0,62240.0,0.0029042]
[1724788884009,0.67377643,62241.0,62240.0,0.0029042]
[1724788884229,0.67377643,62241.0,62240.0,0.0019042]
[1724788884485,0.67477643,62241.0,62240.0,0.0009042]
[1724788884947,0.67577643,62241.0,62240.0,0.0009042]
[1724788885414,0.45444543,62241.0,62240.0,0.0009042]
[1724788885644,0.77577643,62241.0,62240.0,0.0009042]
[1724788886311,1.41843843,62241.0,62240.0,0.0009042]
[1724788887004,0.832011,62239.0,62238.0,0.00077465]
[1724788887216,1.254852,62239.0,62238.0,0.00077465]
[1724788888547,1.254852,62239.0,62238.0,0.00177465]
[1724788888755,1.254852,62239.0,62238.0,0.00277465]
[1724788888968,1.354852,62239.0,62238.0,0.00277465]
[1724788889416,1.354852,62239.0,62238.0,0.00254865]
[1724788889865,1.033511,62239.0,62238.0,0.00254865]
[1724788890084,1.033511,62239.0,62238.0,0.00154865]
[1724788890501,1.039511,62239.0,62238.0,0.00154865]
[1724788890711,1.360852,62239.0,62238.0,0.00054865]
[1724788891148,1.366852,62239.0,62238.0,0.00054865]
[1724788891371,1.85011935,62239.0,62238.0,0.00054865]
[1724788891587,1.432952,62239.0,62238.0,0.00054865]
[1724788892503,1.437952,62239.0,62238.0,0.00054865]
[1724788892726,1.759293,62239.0,62238.0,0.00054865]
[1724788892971,1.759293,62239.0,62199.0,0.0806]
[1724788892972,0.35,62211.0,62199.0,0.0806]
[1724788893224,0.35,62211.0,62188.0,0.80149934]
[1724788893225,0.05,62207.0,62191.0,0.160792]
[1724788893445,0.28915302,62207.0,62192.0,0.32158]
[1724788893680,0.63366002,62207.0,62195.0,0.160784]
[1724788893892,0.63366002,62207.0,62192.0,0.32158]
[1724788893893,0.3373686,62207.0,62192.0,0.32158]
[1724788894124,0.93668888,62207.0,62193.0,0.160788]
[1724788894354,0.93668888,62207.0,62194.0,0.160786]
[1724788894595,0.93668888,62207.0,62192.0,0.32158]
[1724788894826,1.35819588,62207.0,62206.0,0.015009]
[1724788895042,1.04468888,62207.0,62206.0,0.016009]
[1724788895732,1.36619588,62207.0,62206.0,0.016009]
[1724788896228,1.43567951,62207.0,62206.0,0.010009]
[1724788896447,1.90309925,62207.0,62206.0,0.010009]
[1724788896674,1.7915743,62207.0,62206.0,0.011009]
[1724788897342,1.77018651,62207.0,62206.0,0.011009]
[1724788897566,1.86574316,62207.0,62206.0,0.011009]
[1724788897781,1.88963232,62207.0,62206.0,0.011009]
[1724788898217,1.56812532,62207.0,62206.0,0.011009]
[1724788898468,0.34037422,62207.0,62206.0,0.011009]
[1724788898688,0.50112722,62207.0,62206.0,0.011009]
[1724788898909,0.4533686,62207.0,62206.0,0.011009]
[1724788899124,0.2926156,62207.0,62206.0,0.011009]
[1724788899343,0.2426156,62207.0,62206.0,0.011009]
[1724788899556,0.23961558,62207.0,62206.0,0.011009]
[1724788899971,0.2426156,62207.0,62206.0,0.011009]
[1724788901037,0.14121558,62207.0,62206.0,0.011009]
[1724788901267,0.04121558,62207.0,62206.0,0.574377]
[1724788901475,0.04121558,62207.0,62206.0,0.895889]
[1724788901890,0.04121558,62207.0,62206.0,1.217401]
[1724788902102,0.04121558,62207.0,62206.0,1.3491411]
[1724788902311,0.03321558,62207.0,62206.0,0.894889]
[1724788902515,0.04021558,62207.0,62206.0,0.895889]
[1724788902717,0.38221558,62207.0,62206.0,0.170765]
[1724788902918,0.38221558,62207.0,62206.0,0.010009]
[1724788903136,0.37521558,62207.0,62206.0,0.009009]
[1724788903347,0.37621558,62207.0,62206.0,0.015009]
[1724788903841,0.37521558,62207.0,62206.0,0.009009]
[1724788904069,0.38221558,62207.0,62206.0,0.010009]
[1724788904284,0.37621558,62207.0,62206.0,0.015009]
[1724788904510,0.45291558,62207.0,62206.0,0.015009]
[1724788904721,0.45391558,62207.0,62206.0,0.022009]
[1724788905638,0.71531424,62207.0,62206.0,0.022009]
[1724788906311,0.64266858,62207.0,62206.0,0.022009]
[1724788906548,0.64166858,62207.0,62206.0,0.016009]
[1724788906759,0.65166858,62207.0,62206.0,0.017009]
[1724788906975,0.65086858,62207.0,62206.0,0.00805614]
[1724788907191,0.65086858,62207.0,62206.0,0.00740467]
[1724788907427,0.64986858,62207.0,62206.0,0.00740467]
[1724788907691,0.65116858,62207.0,62206.0,0.00640467]
[1724788907897,0.98167558,62207.0,62206.0,0.00740467]
[1724788908795,0.99167558,62207.0,62206.0,0.00840467]
[1724788909440,1.90297635,62207.0,62206.0,0.00840467]
[1724788909890,1.75047949,62207.0,62206.0,0.00740467]
[1724788910126,2.06298649,62207.0,62206.0,0.00740467]
[1724788910364,2.08615633,62207.0,62206.0,0.00740467]
[1724788910567,2.15025633,62207.0,62206.0,0.00740467]
[1724788910787,2.30122178,62207.0,62206.0,0.00640467]
[1724788910993,2.30122178,62207.0,62206.0,0.00740467]
[1724788911234,2.31022178,62207.0,62206.0,0.00740467]
[1724788911461,2.31022178,62207.0,62206.0,0.00640467]
[1724788911647,2.32422178,62207.0,62206.0,0.00740467]
[1724788911848,2.17325633,62207.0,62206.0,0.00840467]
[1724788912261,2.17325633,62207.0,62206.0,0.00740467]
[1724788912262,1.84274933,62207.0,62206.0,0.00740467]
[1724788912692,1.84274933,62207.0,62206.0,0.00840467]
[1724788912693,1.85574933,62207.0,62206.0,0.00840467]
[1724788915571,1.84274933,62207.0,62206.0,0.00740467]
[1724788915917,1.85274933,62207.0,62206.0,0.00740467]
[1724788916129,1.78324492,62207.0,62206.0,0.00740467]
[1724788917144,1.43873792,62207.0,62206.0,0.00640467]
[1724788917344,1.44773792,62207.0,62206.0,0.00640467]
[1724788917988,0.49571558,62207.0,62206.0,0.00640467]
[1724788920355,0.65646858,62207.0,62206.0,0.00640467]
[1724788920563,0.67946858,62207.0,62206.0,0.00640467]
[1724788920783,1.00097558,62207.0,62206.0,0.00640467]
[1724788920990,1.16094103,62207.0,62206.0,0.00640467]
[1724788921230,1.23614103,62207.0,62206.0,0.00640467]
[1724788921464,1.07617558,62207.0,62206.0,0.00640467]
[1724788922071,1.40268258,62207.0,62206.0,0.00640467]
[1724788924021,1.40350458,62207.0,62206.0,0.00640467]
[1724788924448,1.72501158,62207.0,62206.0,0.00640467]
[1724788926544,1.77282139,62207.0,62206.0,0.00640467]
[1724788927396,1.79672629,62207.0,62206.0,0.00640467]
[1724788927614,1.15371229,62207.0,62206.0,0.00640467]
[1724788927828,1.40001929,62207.0,62206.0,0.00640467]
[1724788928404,1.32830458,62207.0,62206.0,0.00640467]
[1724788929064,1.00679758,62207.0,62206.0,0.00640467]
[1724788929235,0.7759102,62207.0,62206.0,0.00640467]
[1724788929585,0.68029058,62207.0,62206.0,0.00640467]
[1724788931953,1.00179758,62207.0,62206.0,0.00640467]
[1724788933487,1.1455046,62207.0,62206.0,0.00640467]
[1724788934408,1.00179758,62207.0,62206.0,0.00640467]
[1724788935723,0.99279758,62207.0,62206.0,0.00640467]
[1724788935937,0.98279758,62207.0,62206.0,0.00640467]
[1724788936144,0.99679758,62207.0,62206.0,0.00640467]
[1724788936358,1.15846798,62207.0,62206.0,0.00640467]
[1724788936581,1.14446798,62207.0,62206.0,0.00640467]
[1724788937007,1.15646798,62207.0,62206.0,0.00640467]
[1724788937230,1.00879758,62207.0,62206.0,0.00640467]
[1724788937445,0.99479758,62207.0,62206.0,0.00640467]
[1724788937901,1.00579758,62207.0,62206.0,0.00640467]
[1724788939935,1.56497003,62207.0,62206.0,0.00640467]
[1724788940144,1.40500458,62207.0,62206.0,0.00640467]
[1724788942071,1.39400458,62207.0,62206.0,0.00640467]
[1724788942752,1.40700458,62207.0,62206.0,0.00640467]
[1724788943620,1.39400458,62207.0,62206.0,0.00640467]
[1724788943829,1.71551158,62207.0,62206.0,0.00640467]
[1724788944086,1.72751158,62207.0,62206.0,0.00640467]
[1724788946728,2.11941858,62207.0,62206.0,0.00640467]
[1724788947896,2.34432876,62207.0,62206.0,0.00640467]
[1724788948144,2.34432876,62207.0,62187.0,0.009009]
[1724788948145,0.565802,62188.0,62187.0,0.009009]
[1724788948386,1.352012,62188.0,62187.0,0.009009]
[1724788948590,2.095222,62188.0,62187.0,0.009009]
[1724788948814,2.14344794,62188.0,62187.0,0.009009]
[1724788949241,2.28789965,62188.0,62187.0,0.009009]
[1724788949462,2.14344794,62188.0,62187.0,0.009009]
[1724788949673,2.15744794,62188.0,62187.0,0.009009]
[1724788950091,2.17044794,62188.0,62187.0,0.009009]
[1724788950300,2.31490857,62188.0,62187.0,0.009009]
[1724788950508,2.19353174,62188.0,62187.0,0.009009]
[1724788950726,1.952245,62187.0,62186.0,0.009009]
[1724788950945,0.9207125,62181.0,62179.0,0.009009]
[1724788951157,0.326657,62178.0,62177.0,0.00902]
[1724788951388,0.326657,62178.0,62176.0,0.00902]
[1724788951389,0.165831,62177.0,62176.0,0.00902]
[1724788951607,1.01225502,62177.0,62176.0,0.00902]
[1724788951843,1.65557902,62177.0,62176.0,0.00902]
[1724788952519,1.66657902,62177.0,62176.0,0.00902]
[1724788952967,1.67757902,62177.0,62176.0,0.00902]
[1724788953177,1.79786692,62177.0,62176.0,0.00902]
[1724788953872,0.35,62152.0,62151.0,0.0004]
[1724788954333,0.2777925,62156.0,62152.0,0.079]
[1724788954533,0.00300002,62155.0,62152.0,0.079]
[1724788954982,0.00300002,62155.0,62153.0,0.0240304]
[1724788955193,0.35,62154.0,62153.0,0.160893]
[1724788955651,0.35,62154.0,62153.0,0.303493]
[1724788955869,0.35,62154.0,62153.0,0.625279]
[1724788956319,0.02523402,62156.0,62155.0,0.160888]
[1724788956538,0.02523402,62156.0,62155.0,1.268816]
[1724788956756,0.02523402,62156.0,62155.0,1.3957376]
[1724788957010,0.37523402,62156.0,62155.0,0.1426]
[1724788957229,0.37523402,62156.0,62155.0,0.625264]
[1724788958124,0.37523402,62156.0,62155.0,1.267816]
[1724788958125,0.02523402,62156.0,62155.0,1.267816]
[1724788958712,0.02723402,62156.0,62155.0,1.268816]
[1724788958924,0.02723402,62156.0,62155.0,1.74529285]
[1724788959126,0.35,62168.0,62155.0,1.74529285]
[1724788959127,0.35,62178.0,62177.0,0.160831]
[1724788959546,0.000823,62177.0,62175.0,0.160834]
[1724788959767,0.000823,62177.0,62176.0,0.0636]
[1724788961019,0.000823,62177.0,62176.0,0.1416]
[1724788961452,0.02604899,62177.0,62176.0,0.1416]
[1724788961652,0.03104899,62177.0,62176.0,0.1416]
[1724788962516,0.03604899,62177.0,62176.0,0.1416]
[1724788964614,0.03604899,62177.0,62176.0,0.3326771]
[1724788964841,0.03604899,62177.0,62176.0,0.9760111]
[1724788965282,0.010823,62177.0,62176.0,0.9760111]
[1724788965725,0.005823,62177.0,62176.0,0.9760111]
[1724788966177,0.005823,62177.0,62176.0,1.2976781]
[1724788966820,0.0310463,62177.0,62176.0,1.2976781]
[1724788967257,0.0320463,62177.0,62176.0,1.3036781]
[1724788967488,0.0270463,62177.0,62176.0,0.9820111]
[1724788967711,0.0270463,62177.0,62176.0,0.9760111]
[1724788968129,0.0272463,62177.0,62176.0,0.951767]
[1724788968544,0.0285463,62177.0,62176.0,0.945767]
[1724788968774,0.0275463,62177.0,62176.0,0.945767]
[1724788968969,0.0285463,62177.0,62176.0,0.951767]
[1724788970698,0.0295463,62177.0,62176.0,0.951767]
[1724788971769,0.0295463,62177.0,62176.0,0.9526723]
[1724788973323,0.0295463,62177.0,62176.0,1.40177483]
[1724788973542,0.0295463,62177.0,62176.0,1.08010783]
[1724788975333,0.0295463,62177.0,62176.0,0.9526723]
[1724788976210,0.07765025,62177.0,62176.0,0.9526723]
[1724788978218,0.07765025,62177.0,62176.0,1.2743393]
[1724788978450,0.0295463,62177.0,62176.0,1.2743393]
[1724788980816,0.07765505,62177.0,62176.0,0.6310053]
[1724788981043,0.10170943,62177.0,62176.0,0.4894053]
[1724788981284,0.1257638,62177.0,62176.0,0.4894053]
[1724788981504,0.0295463,62177.0,62176.0,0.4894053]
[1724788981936,0.10174482,62177.0,62176.0,0.8110723]
[1724788982153,0.0295463,62177.0,62176.0,0.8110723]
[1724788982627,0.0776831,62177.0,62176.0,0.8110723]
[1724788982834,0.0295463,62177.0,62176.0,0.8110723]
[1724788983262,0.10175298,62177.0,62176.0,0.8110723]
[1724788983470,0.0295463,62177.0,62176.0,0.8110723]
[1724788983680,0.10175497,62177.0,62176.0,0.8110723]
[1724788984104,0.0295463,62177.0,62176.0,0.8110723]
[1724788984574,0.10177259,62177.0,62176.0,0.8110723]
[1724788985646,0.1257638,62177.0,62176.0,0.8110723]
[1724788986548,0.0295463,62177.0,62176.0,0.8110723]
[1724788986772,0.14995006,62177.0,62176.0,0.8110723]
[1724788988120,0.14995006,62177.0,62176.0,0.4894053]
[1724788988562,0.14995006,62177.0,62176.0,0.58520403]
[1724788989188,0.0295463,62177.0,62176.0,0.58520403]
[1724788989417,0.0295463,62177.0,62176.0,0.0069053]
[1724788989626,0.17403081,62177.0,62176.0,0.0069053]
[1724788989844,0.0295463,62177.0,62176.0,0.0069053]
[1724788990279,0.1046463,62177.0,62176.0,0.0069053]
[1724788990707,0.1036463,62177.0,62176.0,0.0009053]
[1724788990927,0.1026463,62177.0,62176.0,0.0009053]
[1724788991149,0.1036463,62177.0,62176.0,0.0059053]
[1724788991293,0.10764632,62177.0,62176.0,0.0059053]
[1724788991514,0.10664632,62177.0,62176.0,0.0059053]
[1724788991920,0.10764632,62177.0,62176.0,0.0059053]
[1724788992325,0.42930832,62177.0,62176.0,0.0059053]
[1724788992552,0.42930832,62177.0,62176.0,0.0009053]
[1724788992553,0.58913932,62177.0,62176.0,0.0009053]
[1724788992754,0.59013932,62177.0,62176.0,0.0039053]
[1724788993196,0.58913932,62177.0,62176.0,0.0009053]
[1724788993663,0.90980132,62177.0,62176.0,0.0019053]
[1724788993962,1.01280132,62177.0,62176.0,0.0019053]
[1724788994169,0.69113932,62177.0,62176.0,0.0009053]
[1724788994379,0.68813932,62177.0,62176.0,0.0009053]
[1724788995221,0.69513932,62177.0,62176.0,0.0009053]
[1724788995902,0.70213932,62177.0,62176.0,0.0009053]
[1724788998314,0.7028028,62177.0,62176.0,0.0009053]
[1724788999400,0.2203098,62177.0,62176.0,0.0009053]
[1724788999607,0.14220978,62177.0,62176.0,0.1617383]
[1724788999811,0.14220978,62177.0,62176.0,0.51408913]
[1724788999812,0.28666658,62177.0,62176.0,0.51408913]
[1724789000049,0.04220978,62177.0,62176.0,0.51408913]
[1724789000264,0.04220978,62177.0,62176.0,0.19242213]
[1724789000470,0.02820978,62177.0,62176.0,0.0009053]
[1724789000679,0.17966658,62177.0,62176.0,0.0009053]
[1724789000894,0.27966658,62177.0,62176.0,0.0009053]
[1724789001107,0.27266658,62177.0,62176.0,0.1617383]
[1724789001330,0.27366658,62177.0,62176.0,0.0009053]
[1724789001542,0.27365535,62177.0,62176.0,0.0009053]
[1724789001762,0.17365535,62177.0,62176.0,0.1617383]
[1724789001974,0.02920978,62177.0,62176.0,0.1617383]
[1724789002420,0.03620978,62177.0,62176.0,0.1617383]
[1724789003148,0.02920978,62177.0,62176.0,0.1617383]
[1724789003361,0.02920978,62177.0,62176.0,0.0059053]
[1724789003362,0.03020978,62177.0,62176.0,0.0059053]
[1724789003785,0.17465535,62177.0,62176.0,0.0059053]
[1724789003978,0.03020978,62177.0,62176.0,0.0059053]
[1724789005618,0.17465535,62177.0,62176.0,0.0059053]
[1724789005824,0.17461916,62177.0,62176.0,0.0059053]
[1724789006220,0.03020978,62177.0,62176.0,0.0059053]
[1724789007265,0.1746156,62177.0,62176.0,0.0059053]
[1724789008692,0.17510978,62177.0,62176.0,0.0059053]
[1724789009166,0.1781098,62177.0,62176.0,0.0059053]
[1724789010004,0.3389408,62177.0,62176.0,0.0059053]
[1724789010444,0.1781098,62177.0,62176.0,0.0059053]
[1724789010875,0.17510978,62177.0,62176.0,0.0059053]
[1724789011080,0.1781098,62177.0,62176.0,0.0059053]
[1724789012182,0.15052346,62177.0,62176.0,0.4884053]
[1724789012412,0.10240441,62177.0,62176.0,0.95308283]
[1724789012638,0.07835128,62177.0,62176.0,1.23087533]
[1724789012876,0.03020978,62177.0,62176.0,1.61534233]
[1724789013139,0.03020978,62177.0,62176.0,1.93700933]
[1724789013365,0.03020978,62177.0,62176.0,1.61534233]
[1724789013594,0.02920978,62177.0,62176.0,1.61534233]
[1724789013801,0.02820978,62177.0,62176.0,1.61034233]
[1724789014012,0.03020978,62177.0,62176.0,1.61434233]
[1724789014228,0.03020978,62177.0,62176.0,1.93600933]
[1724789014456,0.02920978,62177.0,62176.0,1.93600933]